Workbook

Sheet Instructions
A1: Manufacturer | B1: Ape
A2: File as | B2: A
A3: Product Code | B3: B
A4: CCTD Effective Date | B4: 5/1/23 (Updated)
A8: Enter your Company Name
B10: Click on "Index" to set the print area for the price list index
B11: Then you can send it to print
B14: Click on "Suggested Price List" to set the print area for Conestoga Tile's suggested price list.
B15: Then you can send it to print
B18: Enter your discount codes if you want a personal net cost sheet.
B20: Product
B21: Code | C21: Disc. %
B22: =+B3 -> B
B24: Click on "Your Cost" to set the print area for your personal cost report.
B25: Then you can send it to print
A28: Discount: | B28: To help establish your price list, enter the gross profit percent for each type of product.
B29: If you want to use Conestoga Tile's list price, leave them blank.
A31: Round Nickel: | B31: If you always want your price to round to the nearest nickel, enter "YES".
B32: If you enter "NO", it will NOT round to the nearest nickel.
A34: Ending Cents: | B34: If you always want your price to end with a certain cents, enter that cent value.
B35: If you leave it "blank" will NOT round to this cent value.
B37: Group | C37: GP Margin | D37: GP Margin % for | F37: Round Nickel | G37: add/subtract | H37: Ending Cents
B38: 1 | D38: Field Tile | F38: No | G38: 0
B39: 2 | D39: Trim | F39: No | G39: 0
B40: 3 | D40: Decos | F40: No | G40: 0
B41: 4 | D41: 0 | F41: No | G41: 0
B42: 5 | D42: 0 | F42: No | G42: 0
B43: 6 | D43: 0 | F43: No | G43: 0
B44: 7 | D44: 0 | F44: No | G44: 0
A46: If you want to manually adjust your price list, hit "F5" and go to "Customer_Cost" to manually adjust pricing.
A47: You can enter a value in the column labeled "Adj." to change your price manually.
B49: Click on "Your Price Calculation" to set the print area for your personal cost calculation report.
B50: Then you can send it to print
B53: Click on "Your Price List" to set the print area for your personal price list.
B54: Then you can send it to print
H55: Yes
A57: If you have any questions on how to best use this spreadsheet, please feel free to contact
A58: Jim Vogel at (800) 422-6860, ext. 4201 or via e-mail at jimvogel@cctd.com

Sheet Index
F3: ="File '"&Instructions!B2&"' - "&Instructions!B1 -> File 'A' - Ape
A6: ="Price List Index - "&Instructions!B4 -> Price List Index - 5/1/23 (Updated)
A11: Page | C11: Series | E11: Product Type
A12: 1 | C12: Altea | E12: Glazed Ceramic Wall
A13: 1 | C13: Calacatta Slow | E13: Glazed Ceramic Wall & Glazed Porcelain Floor
A14: 1 | C14: Calpe | E14: Glazed Ceramic Wall
A15: 1 | C15: Dynamic | E15: Glazed Ceramic Wall
A16: 1 | C16: Fado | E16: Glazed Ceramic Wall
A17: 1 | C17: Grunge | E17: Glazed Ceramic Wall
A18: 1 | C18: Hamptons | E18: Glazed Ceramic Wall
A19: 1 | C19: Memories | E19: Glazed Ceramic Wall
A20: 1 | C20: Murus | E20: Glazed Porcelain Wall
A21: 2 | C21: Onyx Slow | E21: Glazed Ceramic Wall & Glazed Porcelain Floor
A22: 2 | C22: Savannah | E22: Glazed Ceramic Wall
A23: 2 | C23: Seville | E23: Glazed Ceramic Wall
A24: 2 | C24: Switch | E24: Glazed Ceramic Wall & Glazed Porcelain Floor
A25: 2 | C25: Toscana | E25: Glazed Porcelain
A26: 2 | C26: Verona | E26: Glazed Ceramic Wall & Glazed Porcelain Floor
A27: 2 | C27: Vintage | E27: Glazed Ceramic Wall
A52: This price list is available electronically on an Excel spreadsheet at www.conestogatile.com/pricelists.
A54: The spreadsheet has many special features to assist you. Apply your discount to generate your net costs for your purchasing department. Apply your standard gross margin percentage or custom prices to generate your own custom price list for your showroom. Print out individual price list for each series that can be attached to the back of your sample boards for easy reference.

Sheet Price List
B1: Field Tile | E1: Size | G1: Field | N1: SF/CTN | Q1: =IF(Suggested="Yes",Y1,AE1) -> 0.05 | R1: SF | S1: =+Instructions!$B$3 -> B | U1: =+Instructions!$C$22 -> 0 | V1: =ROUND($Y1*(1-U1)+0.004999,2) -> 0.05 | X1: new | Y1: 0.05 | Z1: =+U1 -> 0 | AA1: 0.05 | AB1: =(AE1-AA1)/AE1 -> 0 | AD1: 1 | AE1: =SUM(AH1:AJ1)+AC1 -> 0.05 | AH1: =ROUND(AA1/(1-VLOOKUP(AD1,Group,2,FALSE)),2) -> 0.05 | AI1: =IF(VLOOKUP(AD1,Group,5,FALSE)="YES",VLOOKUP(ROUND(ROUND(AH1,1)-AH1,2),Round,2,FALSE)+VLOOKUP(AD1,Group,6,FALSE),0) -> 0 | AJ1: =IF(VLOOKUP(AD1,Group,7,FALSE)="",0,ROUND(AH1-0.04999,1)-AH1+AK1) -> 0 | AK1: =IF(VLOOKUP(AD1,Group,7,FALSE)="","",VLOOKUP(AD1,Group,7,FALSE)) ->  | AM1: X
B2: Trim | E2: Size | G2: Shape | I2: Description | Q2: =IF(Suggested="Yes",Y2,AE2) -> 0.05 | R2: EA | S2: =+Instructions!$B$3 -> B | U2: =+Instructions!$C$22 -> 0 | V2: 0.05 | X2: new | Y2: 0.05 | Z2: 0 | AA2: 0.05 | AB2: 0 | AD2: 2 | AE2: 0.05 | AH2: 0.05 | AI2: 0 | AJ2: 0 | AM2: X
B3: Decos | E3: Size | G3: Shape | I3: Description | Q3: =IF(Suggested="Yes",Y3,AE3) -> 0.05 | R3: EA | S3: =+Instructions!$B$3 -> B | U3: =+Instructions!$C$22 -> 0 | V3: 0.05 | X3: new | Y3: 0.05 | Z3: 0 | AA3: 0.05 | AB3: 0 | AD3: 3 | AE3: 0.05 | AH3: 0.05 | AI3: 0 | AJ3: 0 | AM3: X
B4: 0 | E4: Size | G4: Shape | I4: Description | Q4: =IF(Suggested="Yes",'Price List'!Y4,'Price List'!AE4) -> 0 | R4: EA | S4: =+Instructions!$B$3 -> B | U4: =+Instructions!$C$22 -> 0 | V4: 0 | X4: new | Y4: 0 | Z4: 0 | AA4: 0 | AD4: 4 | AE4: 0 | AH4: 0 | AI4: 0 | AJ4: 0 | AM4: X
B5: 0 | E5: Size | G5: Shape | I5: Description | Q5: =IF(Suggested="Yes",'Price List'!Y5,'Price List'!AE5) -> 0 | R5: EA | S5: =+Instructions!$B$3 -> B | U5: =+Instructions!$C$22 -> 0 | V5: 0 | X5: new | Y5: 0 | Z5: 0 | AA5: 0 | AD5: 5 | AE5: 0 | AH5: 0 | AI5: 0 | AJ5: 0 | AM5: X
B6: 0 | E6: Size | G6: Shape | I6: Description | Q6: =IF(Suggested="Yes",'Price List'!Y6,'Price List'!AE6) -> 0 | R6: EA | S6: =+Instructions!$B$3 -> B | U6: =+Instructions!$C$22 -> 0 | V6: 0 | X6: new | Y6: 0 | Z6: 0 | AA6: 0 | AD6: 6 | AE6: 0 | AH6: 0 | AI6: 0 | AJ6: 0 | AM6: X
B7: 0 | E7: Size | G7: Shape | I7: Description | Q7: =IF(Suggested="Yes",'Price List'!Y7,'Price List'!AE7) -> 0 | R7: EA | S7: =+Instructions!$B$3 -> B | U7: =+Instructions!$C$22 -> 0 | V7: 0 | X7: new | Y7: 0 | Z7: 0 | AA7: 0 | AD7: 7 | AE7: 0 | AH7: 0 | AI7: 0 | AJ7: 0 | AM7: X
B8: Format | O8: Stock | P8: a | Q8: 1000 | R8: ABC | U8: 0.1 | V8: 1000 | X8: ABC | Y8: 1000 | Z8: 0.1 | AA8: 1000 | AB8: 0.1 | AC8: 10 | AE8: 1000 | AM8: X
AM9: X
M10: Price List | U10: Cust. Cost | X10: Customer Cost Calculation | AM10: X
D11: Sizes & Shapes | M11: Full Carton | O11: Stock | P11: Note | Q11: =IF(Suggested="Yes",Y11,AE11) -> List Price | R11: U/M | S11: Code | U11: Disc. | V11: Net | X11: Chg | Y11: List Price | Z11: Disc | AA11: Act. Cost | AB11: GP% | AC11: Adj. | AD11: Group | AE11: Price | AH11: Calc Price | AI11: .05 Round | AJ11: Cents | AK11: Round to | AM11: X
AM12: X
M13: ="File '"&Instructions!B2&"' - "&Instructions!B1 -> File 'A' - Ape | U13: Cost | AE13: Retail Price Calculations | AM13: X
R14: =+Instructions!B4 -> 5/1/23 (Updated) | AC14: =TODAY() -> 2023-08-09 | AM14: X
AM15: X
C16: ="Product Code '"&Instructions!B3&"'" -> Product Code 'B' | AE16: =IF(Instructions!$C$8="","",Instructions!$C$8) ->  | AM16: X
AM17: X
C18: Sizes & Shapes | M18: Full Carton | O18: Stock | P18: Note | Q18: =+Q$11 -> List Price | R18: U/M | S18: =+S$11 -> Code | U18: Disc. | V18: Net | X18: Chg | Y18: List Price | Z18: =+Z$11 -> Disc | AA18: Act. Cost | AB18: GP% | AC18: Adj. | AD18: =+AD$11 -> Group | AE18: Price | AH18: Calc Price | AI18: .05 Round | AJ18: Cents | AK18: Round to | AM18: X
C19: ALL ITEMS MARKED WITH PACKAGING QUANTITY ARE SOLD IN MULTIPLES OF THAT QUANTITY ONLY | AM19: X
C20: NON-Stock ITEMS - MINIMUM 6-8 WEEK DELIVERY
AM21: X
C22: ALTEA - Glazed Ceramic Wall | P22: Item # Lookup: | Q22: APAL
AM23: X
D24: Colors: | E24: Grey Ivory Sky Taupe White
AM25: X
B26: Field Tile | D26: Gloss: | E26: 3" x 12" | G26: Field | N26: 5.38 SF/CTN | O26: Stock | P26: a | Q26: =IF(Suggested="Yes",Y26,AE26) -> 7.8 | R26: SF | S26: =+Instructions!$B$3 -> B | U26: =+Instructions!$C$22 -> 0 | V26: =ROUND($Y26*(1-U26)+0.004999,2) -> 7.8 | Y26: 7.8 | Z26: =+U26 -> 0 | AA26: =+V26 -> 7.8 | AB26: =(AE26-AA26)/AE26 -> 0 | AD26: 1 | AE26: =SUM(AH26:AJ26)+AC26 -> 7.8 | AH26: =ROUND(AA26/(1-VLOOKUP(AD26,Group,2,FALSE)),2) -> 7.8 | AI26: =IF(VLOOKUP(AD26,Group,5,FALSE)="YES",VLOOKUP(ROUND(ROUND(AH26,1)-AH26,2),Round,2,FALSE)+VLOOKUP(AD26,Group,6,FALSE),0) -> 0 | AJ26: =IF(VLOOKUP(AD26,Group,7,FALSE)="",0,ROUND(AH26-0.04999,1)-AH26+AK26) -> 0 | AK26: =IF(VLOOKUP(AD26,Group,7,FALSE)="","",VLOOKUP(AD26,Group,7,FALSE)) ->  | AM26: X
AM27: X
B28: Decos | E28: 0.6" x 12" | G28: Pencil Bullnose (Edge Stick) | O28: Stock | Q28: =IF(Suggested="Yes",Y28,AE28) -> 9.25 | R28: EA | S28: =+Instructions!$B$3 -> B | U28: =+Instructions!$C$22 -> 0 | V28: =ROUND($Y28*(1-U28)+0.004999,2) -> 9.25 | Y28: 9.25 | Z28: =+U28 -> 0 | AA28: =+V28 -> 9.25 | AB28: =(AE28-AA28)/AE28 -> 0 | AD28: 3 | AE28: =SUM(AH28:AJ28)+AC28 -> 9.25 | AH28: =ROUND(AA28/(1-VLOOKUP(AD28,Group,2,FALSE)),2) -> 9.25 | AI28: =IF(VLOOKUP(AD28,Group,5,FALSE)="YES",VLOOKUP(ROUND(ROUND(AH28,1)-AH28,2),Round,2,FALSE)+VLOOKUP(AD28,Group,6,FALSE),0) -> 0 | AJ28: =IF(VLOOKUP(AD28,Group,7,FALSE)="",0,ROUND(AH28-0.04999,1)-AH28+AK28) -> 0 | AK28: =IF(VLOOKUP(AD28,Group,7,FALSE)="","",VLOOKUP(AD28,Group,7,FALSE)) ->  | AM28: X
D30: Note: | E30: a) Packaging is changing from 5.38 SF/CTN to 10.76 SF/CTN as inventory with old packaging is depleted.
C32: CALACATTA SLOW - Glazed Ceramic Wall & Glazed Porcelain Floor | P32: Item # Lookup: | Q32: APCS
AM33: X
D34: Colors: | E34: Calacatta Slow
AM35: X
B36: Field Tile | E36: 3" x 12" | G36: Field | N36: 10.76 SF/CTN | O36: Stock | Q36: =IF(Suggested="Yes",Y36,AE36) -> 7.8 | R36: SF | S36: =+Instructions!$B$3 -> B | U36: =+Instructions!$C$22 -> 0 | V36: =ROUND($Y36*(1-U36)+0.004999,2) -> 7.8 | Y36: 7.8 | Z36: =+U36 -> 0 | AA36: =+V36 -> 7.8 | AB36: =(AE36-AA36)/AE36 -> 0 | AD36: 1 | AE36: =SUM(AH36:AJ36)+AC36 -> 7.8 | AH36: =ROUND(AA36/(1-VLOOKUP(AD36,Group,2,FALSE)),2) -> 7.8 | AI36: =IF(VLOOKUP(AD36,Group,5,FALSE)="YES",VLOOKUP(ROUND(ROUND(AH36,1)-AH36,2),Round,2,FALSE)+VLOOKUP(AD36,Group,6,FALSE),0) -> 0 | AJ36: =IF(VLOOKUP(AD36,Group,7,FALSE)="",0,ROUND(AH36-0.04999,1)-AH36+AK36) -> 0 | AK36: =IF(VLOOKUP(AD36,Group,7,FALSE)="","",VLOOKUP(AD36,Group,7,FALSE)) ->  | AM36: X
B37: Field Tile | E37: 5.5" x 6.3" | G37: Field - Hex | N37: 3.55 SF/CTN | O37: Stock | P37: a | Q37: =IF(Suggested="Yes",Y37,AE37) -> 11.4 | R37: SF | S37: =+Instructions!$B$3 -> B | U37: =+Instructions!$C$22 -> 0 | V37: 11.4 | Y37: 11.4 | Z37: 0 | AA37: 11.4 | AB37: 0 | AD37: 1 | AE37: 11.4 | AH37: 11.4 | AI37: 0 | AJ37: 0 | AM37: X
AM38: X
B39: Decos | E39: 0.6" x 12" | G39: Pencil Bullnose (Edge Stick) | O39: Stock | Q39: =IF(Suggested="Yes",Y39,AE39) -> 9.25 | R39: EA | S39: =+Instructions!$B$3 -> B | U39: =+Instructions!$C$22 -> 0 | V39: 9.25 | Y39: 9.25 | Z39: 0 | AA39: 9.25 | AB39: 0 | AD39: 3 | AE39: 9.25 | AH39: 9.25 | AI39: 0 | AJ39: 0 | AM39: X
D41: Note: | E41: a) Glazed Porcelain and may be used on floor applications.
C43: CALPE - Glazed Ceramic Wall | P43: Item # Lookup: | Q43: APCA
AM44: X
D45: Colors: | E45: Grey Ivory Sky Taupe White
AM46: X
B47: Field Tile | D47: Matte: | E47: 3" x 12" | G47: Field | N47: 5.38 SF/CTN | O47: Stock | P47: a | Q47: =IF(Suggested="Yes",Y47,AE47) -> 7.8 | R47: SF | S47: =+Instructions!$B$3 -> B | U47: =+Instructions!$C$22 -> 0 | V47: =ROUND($Y47*(1-U47)+0.004999,2) -> 7.8 | Y47: 7.8 | Z47: =+U47 -> 0 | AA47: =+V47 -> 7.8 | AB47: =(AE47-AA47)/AE47 -> 0 | AD47: 1 | AE47: =SUM(AH47:AJ47)+AC47 -> 7.8 | AH47: =ROUND(AA47/(1-VLOOKUP(AD47,Group,2,FALSE)),2) -> 7.8 | AI47: =IF(VLOOKUP(AD47,Group,5,FALSE)="YES",VLOOKUP(ROUND(ROUND(AH47,1)-AH47,2),Round,2,FALSE)+VLOOKUP(AD47,Group,6,FALSE),0) -> 0 | AJ47: =IF(VLOOKUP(AD47,Group,7,FALSE)="",0,ROUND(AH47-0.04999,1)-AH47+AK47) -> 0 | AK47: =IF(VLOOKUP(AD47,Group,7,FALSE)="","",VLOOKUP(AD47,Group,7,FALSE)) ->  | AM47: X
AM48: X
B49: Decos | E49: 0.6" x 12" | G49: Pencil Bullnose (Edge Stick) | O49: Stock | Q49: =IF(Suggested="Yes",Y49,AE49) -> 9.25 | R49: EA | S49: =+Instructions!$B$3 -> B | U49: =+Instructions!$C$22 -> 0 | V49: =ROUND($Y49*(1-U49)+0.004999,2) -> 9.25 | Y49: 9.25 | Z49: =+U49 -> 0 | AA49: =+V49 -> 9.25 | AB49: =(AE49-AA49)/AE49 -> 0 | AD49: 3 | AE49: =SUM(AH49:AJ49)+AC49 -> 9.25 | AH49: =ROUND(AA49/(1-VLOOKUP(AD49,Group,2,FALSE)),2) -> 9.25 | AI49: =IF(VLOOKUP(AD49,Group,5,FALSE)="YES",VLOOKUP(ROUND(ROUND(AH49,1)-AH49,2),Round,2,FALSE)+VLOOKUP(AD49,Group,6,FALSE),0) -> 0 | AJ49: =IF(VLOOKUP(AD49,Group,7,FALSE)="",0,ROUND(AH49-0.04999,1)-AH49+AK49) -> 0 | AK49: =IF(VLOOKUP(AD49,Group,7,FALSE)="","",VLOOKUP(AD49,Group,7,FALSE)) ->  | AM49: X
D51: Note: | E51: a) Packaging is changing from 5.38 SF/CTN to 10.76 SF/CTN as inventory with old packaging is depleted.
C53: DYNAMIC - Glazed Ceramic Wall | P53: Item # Lookup: | Q53: APDY
AM54: X
D55: Colors: | E55: Celeste Coral Mostaza Neutro Pearl Skylight
AM56: X
B57: Field Tile | E57: 3" x 12" | G57: Field | N57: 5.38 SF/CTN | O57: Stock | P57: a | Q57: =IF(Suggested="Yes",Y57,AE57) -> 11.65 | R57: SF | S57: =+Instructions!$B$3 -> B | U57: =+Instructions!$C$22 -> 0 | V57: =ROUND($Y57*(1-U57)+0.004999,2) -> 11.65 | Y57: 11.65 | Z57: =+U57 -> 0 | AA57: =+V57 -> 11.65 | AB57: =(AE57-AA57)/AE57 -> 0 | AD57: 1 | AE57: =SUM(AH57:AJ57)+AC57 -> 11.65 | AH57: =ROUND(AA57/(1-VLOOKUP(AD57,Group,2,FALSE)),2) -> 11.65 | AI57: =IF(VLOOKUP(AD57,Group,5,FALSE)="YES",VLOOKUP(ROUND(ROUND(AH57,1)-AH57,2),Round,2,FALSE)+VLOOKUP(AD57,Group,6,FALSE),0) -> 0 | AJ57: =IF(VLOOKUP(AD57,Group,7,FALSE)="",0,ROUND(AH57-0.04999,1)-AH57+AK57) -> 0 | AK57: =IF(VLOOKUP(AD57,Group,7,FALSE)="","",VLOOKUP(AD57,Group,7,FALSE)) ->  | AM57: X
B58: Field Tile | E58: 6" x 7" | G58: Field - Scales (Escamas) | N58: 5.38 SF/CTN | O58: Stock | P58: a | Q58: =IF(Suggested="Yes",Y58,AE58) -> 16.55 | R58: SF | S58: =+Instructions!$B$3 -> B | U58: =+Instructions!$C$22 -> 0 | V58: =ROUND($Y58*(1-U58)+0.004999,2) -> 16.55 | Y58: 16.55 | Z58: 0 | AA58: 16.55 | AB58: 0 | AD58: 1 | AE58: 16.55 | AH58: 16.55 | AI58: 0 | AJ58: 0 | AM58: X
AM59: X
B60: Decos | E60: 0.6" x 12" | G60: Pencil Bullnose (Edge Stick) | O60: Stock | P60: a | Q60: =IF(Suggested="Yes",Y60,AE60) -> 9.25 | R60: EA | S60: =+Instructions!$B$3 -> B | U60: =+Instructions!$C$22 -> 0 | V60: =ROUND($Y60*(1-U60)+0.004999,2) -> 9.25 | Y60: 9.25 | Z60: =+U60 -> 0 | AA60: =+V60 -> 9.25 | AB60: =(AE60-AA60)/AE60 -> 0 | AD60: 3 | AE60: =SUM(AH60:AJ60)+AC60 -> 9.25 | AH60: =ROUND(AA60/(1-VLOOKUP(AD60,Group,2,FALSE)),2) -> 9.25 | AI60: =IF(VLOOKUP(AD60,Group,5,FALSE)="YES",VLOOKUP(ROUND(ROUND(AH60,1)-AH60,2),Round,2,FALSE)+VLOOKUP(AD60,Group,6,FALSE),0) -> 0 | AJ60: =IF(VLOOKUP(AD60,Group,7,FALSE)="",0,ROUND(AH60-0.04999,1)-AH60+AK60) -> 0 | AK60: =IF(VLOOKUP(AD60,Group,7,FALSE)="","",VLOOKUP(AD60,Group,7,FALSE)) ->  | AM60: X
D62: Note: | E62: a) Crackle Finish, seal prior to grouting.
C64: FADO - Glazed Ceramic Wall | P64: Item # Lookup: | Q64: APFA
AM65: X
D66: Colors: | E66: Acqua Beige Grey Sky White
AM67: X
B68: Field Tile | E68: 5" x 5" | G68: Field | N68: 5.38 SF/CTN | O68: Stock | Q68: =IF(Suggested="Yes",Y68,AE68) -> 9.65 | R68: SF | S68: =+Instructions!$B$3 -> B | U68: =+Instructions!$C$22 -> 0 | V68: =ROUND($Y68*(1-U68)+0.004999,2) -> 9.65 | Y68: 9.65 | Z68: =+U68 -> 0 | AA68: =+V68 -> 9.65 | AB68: =(AE68-AA68)/AE68 -> 0 | AD68: 1 | AE68: =SUM(AH68:AJ68)+AC68 -> 9.65 | AH68: =ROUND(AA68/(1-VLOOKUP(AD68,Group,2,FALSE)),2) -> 9.65 | AI68: =IF(VLOOKUP(AD68,Group,5,FALSE)="YES",VLOOKUP(ROUND(ROUND(AH68,1)-AH68,2),Round,2,FALSE)+VLOOKUP(AD68,Group,6,FALSE),0) -> 0 | AJ68: =IF(VLOOKUP(AD68,Group,7,FALSE)="",0,ROUND(AH68-0.04999,1)-AH68+AK68) -> 0 | AK68: =IF(VLOOKUP(AD68,Group,7,FALSE)="","",VLOOKUP(AD68,Group,7,FALSE)) ->  | AM68: X
B69: Field Tile | E69: 2.5" x 15.6" | G69: Field | N69: 10.76 SF/CTN | O69: Stock | P69: a | Q69: =IF(Suggested="Yes",Y69,AE69) -> 9.9 | R69: SF | S69: =+Instructions!$B$3 -> B | U69: =+Instructions!$C$22 -> 0 | V69: 9.9 | Y69: 9.9 | Z69: 0 | AA69: 9.9 | AB69: 0 | AD69: 1 | AE69: 9.9 | AH69: 9.9 | AI69: 0 | AJ69: 0 | AM69: X
AM70: X
B71: Decos | E71: 5" x 5" | G71: Deco Field | I71: Amalia | N71: 5.38 SF/CTN | O71: Stock | P71: b | Q71: =IF(Suggested="Yes",Y71,AE71) -> 10.75 | R71: SF | S71: =+Instructions!$B$3 -> B | U71: =+Instructions!$C$22 -> 0 | V71: =ROUND($Y71*(1-U71)+0.004999,2) -> 10.75 | Y71: 10.75 | Z71: =+U71 -> 0 | AA71: =+V71 -> 10.75 | AB71: =(AE71-AA71)/AE71 -> 0 | AD71: 3 | AE71: =SUM(AH71:AJ71)+AC71 -> 10.75 | AH71: =ROUND(AA71/(1-VLOOKUP(AD71,Group,2,FALSE)),2) -> 10.75 | AI71: =IF(VLOOKUP(AD71,Group,5,FALSE)="YES",VLOOKUP(ROUND(ROUND(AH71,1)-AH71,2),Round,2,FALSE)+VLOOKUP(AD71,Group,6,FALSE),0) -> 0 | AJ71: =IF(VLOOKUP(AD71,Group,7,FALSE)="",0,ROUND(AH71-0.04999,1)-AH71+AK71) -> 0 | AK71: =IF(VLOOKUP(AD71,Group,7,FALSE)="","",VLOOKUP(AD71,Group,7,FALSE)) ->  | AM71: X
B72: Decos | E72: 5" x 5" | G72: Deco Field | I72: Carmo | N72: 5.38 SF/CTN | O72: Stock | P72: b | Q72: 10.75 | R72: SF | S72: =+Instructions!$B$3 -> B | U72: =+Instructions!$C$22 -> 0 | V72: =ROUND($Y72*(1-U72)+0.004999,2) -> 10.75 | Y72: 10.75 | Z72: =+U72 -> 0 | AA72: =+V72 -> 10.75 | AB72: =(AE72-AA72)/AE72 -> 0 | AD72: 3 | AE72: =SUM(AH72:AJ72)+AC72 -> 10.75 | AH72: =ROUND(AA72/(1-VLOOKUP(AD72,Group,2,FALSE)),2) -> 10.75 | AI72: =IF(VLOOKUP(AD72,Group,5,FALSE)="YES",VLOOKUP(ROUND(ROUND(AH72,1)-AH72,2),Round,2,FALSE)+VLOOKUP(AD72,Group,6,FALSE),0) -> 0 | AJ72: =IF(VLOOKUP(AD72,Group,7,FALSE)="",0,ROUND(AH72-0.04999,1)-AH72+AK72) -> 0 | AK72: =IF(VLOOKUP(AD72,Group,7,FALSE)="","",VLOOKUP(AD72,Group,7,FALSE)) ->  | AM72: X
B73: Decos | E73: 5" x 5" | G73: Deco Field | I73: Mariza | N73: 5.38 SF/CTN | O73: Stock | P73: b | Q73: 10.75 | R73: SF | S73: =+Instructions!$B$3 -> B | U73: =+Instructions!$C$22 -> 0 | V73: 10.75 | Y73: 10.75 | Z73: 0 | AA73: 10.75 | AB73: 0 | AD73: 3 | AE73: 10.75 | AH73: 10.75 | AI73: 0 | AJ73: 0 | AM73: X
B74: Decos | E74: 5" x 5" | G74: Deco Field | I74: Moura | N74: 5.38 SF/CTN | O74: Stock | P74: b | Q74: 10.75 | R74: SF | S74: =+Instructions!$B$3 -> B | U74: =+Instructions!$C$22 -> 0 | V74: 10.75 | Y74: 10.75 | Z74: 0 | AA74: 10.75 | AB74: 0 | AD74: 3 | AE74: 10.75 | AH74: 10.75 | AI74: 0 | AJ74: 0 | AM74: X
B75: Decos | E75: 5" x 5" | G75: Deco Field | I75: Pontes | N75: 5.38 SF/CTN | O75: Stock | P75: b | Q75: 10.75 | R75: SF | S75: =+Instructions!$B$3 -> B | U75: =+Instructions!$C$22 -> 0 | V75: 10.75 | Y75: 10.75 | Z75: 0 | AA75: 10.75 | AB75: 0 | AD75: 3 | AE75: 10.75 | AH75: 10.75 | AI75: 0 | AJ75: 0 | AM75: X
B76: Decos | E76: 5" x 5" | G76: Deco Field | I76: Tavares | N76: 5.38 SF/CTN | O76: Stock | P76: b | Q76: 10.75 | R76: SF | S76: =+Instructions!$B$3 -> B | U76: =+Instructions!$C$22 -> 0 | V76: 10.75 | Y76: 10.75 | Z76: 0 | AA76: 10.75 | AB76: 0 | AD76: 3 | AE76: 10.75 | AH76: 10.75 | AI76: 0 | AJ76: 0 | AM76: X
B78: Trim | E78: 0.6" x 5" | G78: Pencil Bullnose (Edge Stick) | O78: Stock | Q78: =IF(Suggested="Yes",Y78,AE78) -> 7.3 | R78: EA | S78: =+Instructions!$B$3 -> B | U78: =+Instructions!$C$22 -> 0 | V78: =ROUND($Y78*(1-U78)+0.004999,2) -> 7.3 | Y78: 7.3 | Z78: =+U78 -> 0 | AA78: =+V78 -> 7.3 | AB78: =(AE78-AA78)/AE78 -> 0 | AD78: 2 | AE78: =SUM(AH78:AJ78)+AC78 -> 7.3 | AH78: =ROUND(AA78/(1-VLOOKUP(AD78,Group,2,FALSE)),2) -> 7.3 | AI78: =IF(VLOOKUP(AD78,Group,5,FALSE)="YES",VLOOKUP(ROUND(ROUND(AH78,1)-AH78,2),Round,2,FALSE)+VLOOKUP(AD78,Group,6,FALSE),0) -> 0 | AJ78: =IF(VLOOKUP(AD78,Group,7,FALSE)="",0,ROUND(AH78-0.04999,1)-AH78+AK78) -> 0 | AK78: =IF(VLOOKUP(AD78,Group,7,FALSE)="","",VLOOKUP(AD78,Group,7,FALSE)) ->  | AM78: X
D80: Notes: | E80: a) Packaging is changing from 10.76 SF/CTN to 11.08 SF/CTN as inventory with old packaging is depleted.
E81: b) 30 pieces per carton.
C83: GRUNGE - Glazed Ceramic Wall | P83: Item # Lookup: | Q83: APGR
AM84: X
D85: Colors: | E85: Aqua Blue Grey Iron Oxid
AM86: X
B87: Field Tile | E87: 3" x 12" | G87: Field | N87: 4.84 SF/CTN | O87: Stock | Q87: =IF(Suggested="Yes",Y87,AE87) -> 9.95 | R87: SF | S87: =+Instructions!$B$3 -> B | U87: =+Instructions!$C$22 -> 0 | V87: =ROUND($Y87*(1-U87)+0.004999,2) -> 9.95 | Y87: 9.95 | Z87: =+U87 -> 0 | AA87: =+V87 -> 9.95 | AB87: =(AE87-AA87)/AE87 -> 0 | AD87: 1 | AE87: =SUM(AH87:AJ87)+AC87 -> 9.95 | AH87: =ROUND(AA87/(1-VLOOKUP(AD87,Group,2,FALSE)),2) -> 9.95 | AI87: =IF(VLOOKUP(AD87,Group,5,FALSE)="YES",VLOOKUP(ROUND(ROUND(AH87,1)-AH87,2),Round,2,FALSE)+VLOOKUP(AD87,Group,6,FALSE),0) -> 0 | AJ87: =IF(VLOOKUP(AD87,Group,7,FALSE)="",0,ROUND(AH87-0.04999,1)-AH87+AK87) -> 0 | AK87: =IF(VLOOKUP(AD87,Group,7,FALSE)="","",VLOOKUP(AD87,Group,7,FALSE)) ->  | AM87: X
AM88: X
B89: Decos | E89: 0.6" x 12" | G89: Pencil Bullnose (Edge Stick) | O89: Stock | Q89: =IF(Suggested="Yes",Y89,AE89) -> 9.25 | R89: EA | S89: =+Instructions!$B$3 -> B | U89: =+Instructions!$C$22 -> 0 | V89: =ROUND($Y89*(1-U89)+0.004999,2) -> 9.25 | Y89: 9.25 | Z89: =+U89 -> 0 | AA89: =+V89 -> 9.25 | AB89: =(AE89-AA89)/AE89 -> 0 | AD89: 3 | AE89: =SUM(AH89:AJ89)+AC89 -> 9.25 | AH89: =ROUND(AA89/(1-VLOOKUP(AD89,Group,2,FALSE)),2) -> 9.25 | AI89: =IF(VLOOKUP(AD89,Group,5,FALSE)="YES",VLOOKUP(ROUND(ROUND(AH89,1)-AH89,2),Round,2,FALSE)+VLOOKUP(AD89,Group,6,FALSE),0) -> 0 | AJ89: =IF(VLOOKUP(AD89,Group,7,FALSE)="",0,ROUND(AH89-0.04999,1)-AH89+AK89) -> 0 | AK89: =IF(VLOOKUP(AD89,Group,7,FALSE)="","",VLOOKUP(AD89,Group,7,FALSE)) ->  | AM89: X
AM90: X
C91: HAMPTONS - Glazed Ceramic Wall | P91: Item # Lookup: | Q91: APHA
AM92: X
D93: Colors: | E93: Acqua | G93: Mist | I93: Smoke | K93: Victorian Green
E94: Cherry | G94: Night | I94: Snow
AM95: X
B96: Field Tile | D96: Glossy: | E96: 4" x 5" | G96: Field - Triangle | J96: Kirk | N96: 5.27 SF/CTN | O96: Stock | Q96: =IF(Suggested="Yes",Y96,AE96) -> 18.9 | R96: SF | S96: =+Instructions!$B$3 -> B | U96: =+Instructions!$C$22 -> 0 | V96: =ROUND($Y96*(1-U96)+0.004999,2) -> 18.9 | Y96: 18.9 | Z96: =+U96 -> 0 | AA96: =+V96 -> 18.9 | AB96: =(AE96-AA96)/AE96 -> 0 | AD96: 1 | AE96: =SUM(AH96:AJ96)+AC96 -> 18.9 | AH96: =ROUND(AA96/(1-VLOOKUP(AD96,Group,2,FALSE)),2) -> 18.9 | AI96: =IF(VLOOKUP(AD96,Group,5,FALSE)="YES",VLOOKUP(ROUND(ROUND(AH96,1)-AH96,2),Round,2,FALSE)+VLOOKUP(AD96,Group,6,FALSE),0) -> 0 | AJ96: =IF(VLOOKUP(AD96,Group,7,FALSE)="",0,ROUND(AH96-0.04999,1)-AH96+AK96) -> 0 | AK96: =IF(VLOOKUP(AD96,Group,7,FALSE)="","",VLOOKUP(AD96,Group,7,FALSE)) ->  | AM96: X
B97: Field Tile | E97: 2" x 6" | G97: Field - Arabasque | J97: Havens | N97: 5.38 SF/CTN | O97: Stock | Q97: =IF(Suggested="Yes",Y97,AE97) -> 16.9 | R97: SF | S97: =+Instructions!$B$3 -> B | U97: =+Instructions!$C$22 -> 0 | V97: 16.9 | Y97: 16.9 | Z97: 0 | AA97: 16.9 | AB97: 0 | AD97: 1 | AE97: 16.9 | AH97: 16.9 | AI97: 0 | AJ97: 0 | AM97: X
B98: Field Tile | E98: 2" x 7" | G98: Field - Picket | J98: Gin | N98: 5.81 SF/CTN | O98: Stock | Q98: =IF(Suggested="Yes",Y98,AE98) -> 16.7 | R98: SF | S98: =+Instructions!$B$3 -> B | U98: =+Instructions!$C$22 -> 0 | V98: 16.7 | Y98: 16.7 | Z98: 0 | AA98: 16.7 | AB98: 0 | AD98: 1 | AE98: 16.7 | AH98: 16.7 | AI98: 0 | AJ98: 0 | AM98: X
C100: MEMORIES - Glazed Ceramic Wall | P100: Item # Lookup: | Q100: APME
AM101: X
D102: Colors: | E102: Acqua Mist Night Smoke Victorian Green White
AM103: X
B104: Field Tile | D104: Glossy: | E104: 2.5" x 5" | G104: Field - Rectangle | J104: Memories | N104: 5.38 SF/CTN | O104: Stock | Q104: =IF(Suggested="Yes",Y104,AE104) -> 11.45 | R104: SF | S104: =+Instructions!$B$3 -> B | U104: =+Instructions!$C$22 -> 0 | V104: =ROUND($Y104*(1-U104)+0.004999,2) -> 11.45 | Y104: 11.45 | Z104: =+U104 -> 0 | AA104: =+V104 -> 11.45 | AB104: =(AE104-AA104)/AE104 -> 0 | AD104: 1 | AE104: =SUM(AH104:AJ104)+AC104 -> 11.45 | AH104: =ROUND(AA104/(1-VLOOKUP(AD104,Group,2,FALSE)),2) -> 11.45 | AI104: =IF(VLOOKUP(AD104,Group,5,FALSE)="YES",VLOOKUP(ROUND(ROUND(AH104,1)-AH104,2),Round,2,FALSE)+VLOOKUP(AD104,Group,6,FALSE),0) -> 0 | AJ104: =IF(VLOOKUP(AD104,Group,7,FALSE)="",0,ROUND(AH104-0.04999,1)-AH104+AK104) -> 0 | AK104: =IF(VLOOKUP(AD104,Group,7,FALSE)="","",VLOOKUP(AD104,Group,7,FALSE)) ->  | AM104: X
B105: Field Tile | E105: 5" x 5" | G105: Field - Scales | J105: Smiles | N105: 3.55 SF/CTN | O105: Stock | Q105: =IF(Suggested="Yes",Y105,AE105) -> 15.75 | R105: SF | S105: =+Instructions!$B$3 -> B | U105: =+Instructions!$C$22 -> 0 | V105: 15.75 | Y105: 15.75 | Z105: 0 | AA105: 15.75 | AB105: 0 | AD105: 1 | AE105: 15.75 | AH105: 15.75 | AI105: 0 | AJ105: 0 | AM105: X
B106: Field Tile | E106: 4" x 6" | G106: Field - Diamond | J106: Looks | N106: 5.38 SF/CTN | O106: Stock | Q106: =IF(Suggested="Yes",Y106,AE106) -> 15.95 | R106: SF | S106: =+Instructions!$B$3 -> B | U106: =+Instructions!$C$22 -> 0 | V106: 15.95 | Y106: 15.95 | Z106: 0 | AA106: 15.95 | AB106: 0 | AD106: 1 | AE106: 15.95 | AH106: 15.95 | AI106: 0 | AJ106: 0 | AM106: X
B108: Trim | E108: 0.6" x 12" | G108: Pencil Bullnose (Edge Stick) | O108: Stock | Q108: =IF(Suggested="Yes",Y108,AE108) -> 7.3 | R108: EA | S108: =+Instructions!$B$3 -> B | U108: =+Instructions!$C$22 -> 0 | V108: =ROUND($Y108*(1-U108)+0.004999,2) -> 7.3 | Y108: 7.3 | Z108: =+U108 -> 0 | AA108: =+V108 -> 7.3 | AB108: =(AE108-AA108)/AE108 -> 0 | AD108: 2 | AE108: =SUM(AH108:AJ108)+AC108 -> 7.3 | AH108: =ROUND(AA108/(1-VLOOKUP(AD108,Group,2,FALSE)),2) -> 7.3 | AI108: =IF(VLOOKUP(AD108,Group,5,FALSE)="YES",VLOOKUP(ROUND(ROUND(AH108,1)-AH108,2),Round,2,FALSE)+VLOOKUP(AD108,Group,6,FALSE),0) -> 0 | AJ108: =IF(VLOOKUP(AD108,Group,7,FALSE)="",0,ROUND(AH108-0.04999,1)-AH108+AK108) -> 0 | AK108: =IF(VLOOKUP(AD108,Group,7,FALSE)="","",VLOOKUP(AD108,Group,7,FALSE)) ->  | AM108: X
C110: MURUS - Glazed Porcelain Wall | P110: Item # Lookup: | Q110: APMU
AM111: X
D112: Colors: | E112: Griseo Nix Nocta Oceanum Terra Viridi
AM113: X
B114: Field Tile | D114: Glossy: | E114: 3" x 11" | G114: Field | N114: 10.55 SF/CTN | O114: Stock | P114: a | Q114: =IF(Suggested="Yes",Y114,AE114) -> 10.6 | R114: SF | S114: =+Instructions!$B$3 -> B | U114: =+Instructions!$C$22 -> 0 | V114: =ROUND($Y114*(1-U114)+0.004999,2) -> 10.6 | Y114: 10.6 | Z114: =+U114 -> 0 | AA114: =+V114 -> 10.6 | AB114: =(AE114-AA114)/AE114 -> 0 | AD114: 1 | AE114: =SUM(AH114:AJ114)+AC114 -> 10.6 | AH114: =ROUND(AA114/(1-VLOOKUP(AD114,Group,2,FALSE)),2) -> 10.6 | AI114: =IF(VLOOKUP(AD114,Group,5,FALSE)="YES",VLOOKUP(ROUND(ROUND(AH114,1)-AH114,2),Round,2,FALSE)+VLOOKUP(AD114,Group,6,FALSE),0) -> 0 | AJ114: =IF(VLOOKUP(AD114,Group,7,FALSE)="",0,ROUND(AH114-0.04999,1)-AH114+AK114) -> 0 | AK114: =IF(VLOOKUP(AD114,Group,7,FALSE)="","",VLOOKUP(AD114,Group,7,FALSE)) ->  | AM114: X
D116: Note: | E116: a) Packaging is changing from 10.55 SF/CTN to 6.35 SF/CTN as inventory with old packaging is depleted.
C117: ONYX SLOW - Glazed Ceramic Wall & Glazed Porcelain Floor | P117: Item # Lookup: | Q117: APOS
AM118: X
D119: Colors: | E119: Onyx Slow
AM120: X
B121: Field Tile | E121: 3" x 12" | G121: Field | N121: 10.76 SF/CTN | O121: Stock | Q121: =IF(Suggested="Yes",Y121,AE121) -> 7.8 | R121: SF | S121: =+Instructions!$B$3 -> B | U121: =+Instructions!$C$22 -> 0 | V121: =ROUND($Y121*(1-U121)+0.004999,2) -> 7.8 | Y121: 7.8 | Z121: =+U121 -> 0 | AA121: =+V121 -> 7.8 | AB121: =(AE121-AA121)/AE121 -> 0 | AD121: 1 | AE121: =SUM(AH121:AJ121)+AC121 -> 7.8 | AH121: =ROUND(AA121/(1-VLOOKUP(AD121,Group,2,FALSE)),2) -> 7.8 | AI121: =IF(VLOOKUP(AD121,Group,5,FALSE)="YES",VLOOKUP(ROUND(ROUND(AH121,1)-AH121,2),Round,2,FALSE)+VLOOKUP(AD121,Group,6,FALSE),0) -> 0 | AJ121: =IF(VLOOKUP(AD121,Group,7,FALSE)="",0,ROUND(AH121-0.04999,1)-AH121+AK121) -> 0 | AK121: =IF(VLOOKUP(AD121,Group,7,FALSE)="","",VLOOKUP(AD121,Group,7,FALSE)) ->  | AM121: X
B122: Field Tile | E122: 5.5" x 6.3" | G122: Field - Hex | N122: 3.55 SF/CTN | O122: Stock | P122: a | Q122: =IF(Suggested="Yes",Y122,AE122) -> 11.4 | R122: SF | S122: =+Instructions!$B$3 -> B | U122: =+Instructions!$C$22 -> 0 | V122: 11.4 | Y122: 11.4 | Z122: 0 | AA122: 11.4 | AB122: 0 | AD122: 1 | AE122: 11.4 | AH122: 11.4 | AI122: 0 | AJ122: 0 | AM122: X
AM123: X
B124: Decos | E124: 0.6" x 12" | G124: Pencil Bullnose (Edge Stick) | O124: Stock | Q124: =IF(Suggested="Yes",Y124,AE124) -> 9.25 | R124: EA | S124: =+Instructions!$B$3 -> B | U124: =+Instructions!$C$22 -> 0 | V124: =ROUND($Y124*(1-U124)+0.004999,2) -> 9.25 | Y124: 9.25 | Z124: =+U124 -> 0 | AA124: =+V124 -> 9.25 | AB124: =(AE124-AA124)/AE124 -> 0 | AD124: 3 | AE124: =SUM(AH124:AJ124)+AC124 -> 9.25 | AH124: =ROUND(AA124/(1-VLOOKUP(AD124,Group,2,FALSE)),2) -> 9.25 | AI124: =IF(VLOOKUP(AD124,Group,5,FALSE)="YES",VLOOKUP(ROUND(ROUND(AH124,1)-AH124,2),Round,2,FALSE)+VLOOKUP(AD124,Group,6,FALSE),0) -> 0 | AJ124: =IF(VLOOKUP(AD124,Group,7,FALSE)="",0,ROUND(AH124-0.04999,1)-AH124+AK124) -> 0 | AK124: =IF(VLOOKUP(AD124,Group,7,FALSE)="","",VLOOKUP(AD124,Group,7,FALSE)) ->  | AM124: X
D126: Note: | E126: a) Glazed Porcelain and may be used on floor applications.
C128: SAVANNAH - Glazed Ceramic Wall | P128: Item # Lookup: | Q128: APSA
AM129: X
D130: Colors: | E130: Berilo Grey White
AM131: X
B132: Field Tile | E132: 4" x 4" | G132: Field | N132: 5.38 SF/CTN | O132: Stock | Q132: =IF(Suggested="Yes",Y132,AE132) -> 11.7 | R132: SF | S132: =+Instructions!$B$3 -> B | U132: =+Instructions!$C$22 -> 0 | V132: =ROUND($Y132*(1-U132)+0.004999,2) -> 11.7 | Y132: 11.7 | Z132: =+U132 -> 0 | AA132: =+V132 -> 11.7 | AB132: =(AE132-AA132)/AE132 -> 0 | AD132: 1 | AE132: =SUM(AH132:AJ132)+AC132 -> 11.7 | AH132: =ROUND(AA132/(1-VLOOKUP(AD132,Group,2,FALSE)),2) -> 11.7 | AI132: =IF(VLOOKUP(AD132,Group,5,FALSE)="YES",VLOOKUP(ROUND(ROUND(AH132,1)-AH132,2),Round,2,FALSE)+VLOOKUP(AD132,Group,6,FALSE),0) -> 0 | AJ132: =IF(VLOOKUP(AD132,Group,7,FALSE)="",0,ROUND(AH132-0.04999,1)-AH132+AK132) -> 0 | AK132: =IF(VLOOKUP(AD132,Group,7,FALSE)="","",VLOOKUP(AD132,Group,7,FALSE)) ->  | AM132: X
B133: Field Tile | E133: 2" x 10" | G133: Field | N133: 6.46 SF/CTN | O133: Stock | Q133: =IF(Suggested="Yes",Y133,AE133) -> 12.8 | R133: SF | S133: =+Instructions!$B$3 -> B | U133: =+Instructions!$C$22 -> 0 | V133: =ROUND($Y133*(1-U133)+0.004999,2) -> 12.8 | Y133: 12.8 | Z133: =+U133 -> 0 | AA133: =+V133 -> 12.8 | AB133: =(AE133-AA133)/AE133 -> 0 | AD133: 1 | AE133: =SUM(AH133:AJ133)+AC133 -> 12.8 | AH133: =ROUND(AA133/(1-VLOOKUP(AD133,Group,2,FALSE)),2) -> 12.8 | AI133: =IF(VLOOKUP(AD133,Group,5,FALSE)="YES",VLOOKUP(ROUND(ROUND(AH133,1)-AH133,2),Round,2,FALSE)+VLOOKUP(AD133,Group,6,FALSE),0) -> 0 | AJ133: =IF(VLOOKUP(AD133,Group,7,FALSE)="",0,ROUND(AH133-0.04999,1)-AH133+AK133) -> 0 | AK133: =IF(VLOOKUP(AD133,Group,7,FALSE)="","",VLOOKUP(AD133,Group,7,FALSE)) ->  | AM133: X
B135: Trim | E135: .6" x 10" | G135: Pencil Bullnose (Edge Stick) | O135: Stock | Q135: =IF(Suggested="Yes",Y135,AE135) -> 9.8 | R135: EA | S135: =+Instructions!$B$3 -> B | U135: =+Instructions!$C$22 -> 0 | V135: =ROUND($Y135*(1-U135)+0.004999,2) -> 9.8 | Y135: 9.8 | Z135: =+U135 -> 0 | AA135: =+V135 -> 9.8 | AB135: =(AE135-AA135)/AE135 -> 0 | AD135: 2 | AE135: =SUM(AH135:AJ135)+AC135 -> 9.8 | AH135: =ROUND(AA135/(1-VLOOKUP(AD135,Group,2,FALSE)),2) -> 9.8 | AI135: =IF(VLOOKUP(AD135,Group,5,FALSE)="YES",VLOOKUP(ROUND(ROUND(AH135,1)-AH135,2),Round,2,FALSE)+VLOOKUP(AD135,Group,6,FALSE),0) -> 0 | AJ135: =IF(VLOOKUP(AD135,Group,7,FALSE)="",0,ROUND(AH135-0.04999,1)-AH135+AK135) -> 0 | AK135: =IF(VLOOKUP(AD135,Group,7,FALSE)="","",VLOOKUP(AD135,Group,7,FALSE)) ->  | AM135: X
C137: SEVILLE - Glazed Ceramic Wall | P137: Item # Lookup: | Q137: APSE
AM138: X
D139: Colors: | E139: Black Bone Green Grey Honey Indigo Snow Turquoise
AM140: X
B141: Field Tile | E141: 2.5" x 8" | G141: Field | N141: 5.38 SF/CTN | O141: Stock | Q141: =IF(Suggested="Yes",Y141,AE141) -> 9.3 | R141: SF | S141: =+Instructions!$B$3 -> B | U141: =+Instructions!$C$22 -> 0 | V141: =ROUND($Y141*(1-U141)+0.004999,2) -> 9.3 | Y141: 9.3 | Z141: =+U141 -> 0 | AA141: =+V141 -> 9.3 | AB141: =(AE141-AA141)/AE141 -> 0 | AD141: 1 | AE141: =SUM(AH141:AJ141)+AC141 -> 9.3 | AH141: =ROUND(AA141/(1-VLOOKUP(AD141,Group,2,FALSE)),2) -> 9.3 | AI141: =IF(VLOOKUP(AD141,Group,5,FALSE)="YES",VLOOKUP(ROUND(ROUND(AH141,1)-AH141,2),Round,2,FALSE)+VLOOKUP(AD141,Group,6,FALSE),0) -> 0 | AJ141: =IF(VLOOKUP(AD141,Group,7,FALSE)="",0,ROUND(AH141-0.04999,1)-AH141+AK141) -> 0 | AK141: =IF(VLOOKUP(AD141,Group,7,FALSE)="","",VLOOKUP(AD141,Group,7,FALSE)) ->  | AM141: X
B142: Field Tile | E142: 4" x 4" | G142: Field | N142: 5.38 SF/CTN | O142: Stock | Q142: =IF(Suggested="Yes",Y142,AE142) -> 9.3 | R142: SF | S142: =+Instructions!$B$3 -> B | U142: =+Instructions!$C$22 -> 0 | V142: 9.3 | Y142: 9.3 | Z142: 0 | AA142: 9.3 | AB142: 0 | AD142: 1 | AE142: 9.3 | AH142: 9.3 | AI142: 0 | AJ142: 0 | AM142: X
AM143: X
B144: Decos | E144: 0.5" x 8" | G144: Pencil Bullnose (Edge Stick) | O144: Stock | Q144: =IF(Suggested="Yes",Y144,AE144) -> 6.15 | R144: EA | S144: =+Instructions!$B$3 -> B | U144: =+Instructions!$C$22 -> 0 | V144: =ROUND($Y144*(1-U144)+0.004999,2) -> 6.15 | Y144: 6.15 | Z144: =+U144 -> 0 | AA144: =+V144 -> 6.15 | AB144: =(AE144-AA144)/AE144 -> 0 | AD144: 3 | AE144: =SUM(AH144:AJ144)+AC144 -> 6.15 | AH144: =ROUND(AA144/(1-VLOOKUP(AD144,Group,2,FALSE)),2) -> 6.15 | AI144: =IF(VLOOKUP(AD144,Group,5,FALSE)="YES",VLOOKUP(ROUND(ROUND(AH144,1)-AH144,2),Round,2,FALSE)+VLOOKUP(AD144,Group,6,FALSE),0) -> 0 | AJ144: =IF(VLOOKUP(AD144,Group,7,FALSE)="",0,ROUND(AH144-0.04999,1)-AH144+AK144) -> 0 | AK144: =IF(VLOOKUP(AD144,Group,7,FALSE)="","",VLOOKUP(AD144,Group,7,FALSE)) ->  | AM144: X
C146: SWITCH - Glazed Ceramic Wall & Glazed Porcelain Floor (see note) | P146: Item # Lookup: | Q146: APSW
AM147: X
D148: Colors: | E148: Blue Dark Blue Graphite Grey Victorian Green White
AM149: X
B150: Field Tile | D150: Matte: | E150: 4" Hex | G150: Field - Hexagon | N150: 3.70 SF/CTN | O150: Stock | P150: a | Q150: =IF(Suggested="Yes",Y150,AE150) -> 16.6 | R150: SF | S150: =+Instructions!$B$3 -> B | U150: =+Instructions!$C$22 -> 0 | V150: =ROUND($Y150*(1-U150)+0.004999,2) -> 16.6 | Y150: 16.6 | Z150: =+U150 -> 0 | AA150: =+V150 -> 16.6 | AB150: =(AE150-AA150)/AE150 -> 0 | AD150: 1 | AE150: =SUM(AH150:AJ150)+AC150 -> 16.6 | AH150: =ROUND(AA150/(1-VLOOKUP(AD150,Group,2,FALSE)),2) -> 16.6 | AI150: =IF(VLOOKUP(AD150,Group,5,FALSE)="YES",VLOOKUP(ROUND(ROUND(AH150,1)-AH150,2),Round,2,FALSE)+VLOOKUP(AD150,Group,6,FALSE),0) -> 0 | AJ150: =IF(VLOOKUP(AD150,Group,7,FALSE)="",0,ROUND(AH150-0.04999,1)-AH150+AK150) -> 0 | AK150: =IF(VLOOKUP(AD150,Group,7,FALSE)="","",VLOOKUP(AD150,Group,7,FALSE)) ->  | AM150: X
B151: Field Tile | E151: 2" x 10" | G151: Field - Picket | N151: 2.37 SF/CTN | O151: Stock | Q151: =IF(Suggested="Yes",Y151,AE151) -> 11.3 | R151: SF | S151: =+Instructions!$B$3 -> B | U151: =+Instructions!$C$22 -> 0 | V151: =ROUND($Y151*(1-U151)+0.004999,2) -> 11.3 | Y151: 11.3 | Z151: 0 | AA151: 11.3 | AB151: 0 | AD151: 1 | AE151: 11.3 | AH151: 11.3 | AI151: 0 | AJ151: 0 | AM151: X
AM152: X
B153: Decos | E153: 0.6" x 12" | G153: Pencil Bullnose (Edge Stick) | O153: Stock | Q153: =IF(Suggested="Yes",Y153,AE153) -> 9.25 | R153: EA | S153: =+Instructions!$B$3 -> B | U153: =+Instructions!$C$22 -> 0 | V153: =ROUND($Y153*(1-U153)+0.004999,2) -> 9.25 | Y153: 9.25 | Z153: =+U153 -> 0 | AA153: =+V153 -> 9.25 | AB153: =(AE153-AA153)/AE153 -> 0 | AD153: 3 | AE153: =SUM(AH153:AJ153)+AC153 -> 9.25 | AH153: =ROUND(AA153/(1-VLOOKUP(AD153,Group,2,FALSE)),2) -> 9.25 | AI153: =IF(VLOOKUP(AD153,Group,5,FALSE)="YES",VLOOKUP(ROUND(ROUND(AH153,1)-AH153,2),Round,2,FALSE)+VLOOKUP(AD153,Group,6,FALSE),0) -> 0 | AJ153: =IF(VLOOKUP(AD153,Group,7,FALSE)="",0,ROUND(AH153-0.04999,1)-AH153+AK153) -> 0 | AK153: =IF(VLOOKUP(AD153,Group,7,FALSE)="","",VLOOKUP(AD153,Group,7,FALSE)) ->  | AM153: X
B155: Field Tile | D155: Gloss: | E155: 2.5" x 5" | G155: Field | N155: 4.88 SF/CTN | O155: Stock | Q155: =IF(Suggested="Yes",Y155,AE155) -> 10.25 | R155: SF | S155: =+Instructions!$B$3 -> B | U155: =+Instructions!$C$22 -> 0 | V155: =ROUND($Y155*(1-U155)+0.004999,2) -> 10.25 | Y155: 10.25 | Z155: =+U155 -> 0 | AA155: =+V155 -> 10.25 | AB155: =(AE155-AA155)/AE155 -> 0 | AD155: 1 | AE155: =SUM(AH155:AJ155)+AC155 -> 10.25 | AH155: =ROUND(AA155/(1-VLOOKUP(AD155,Group,2,FALSE)),2) -> 10.25 | AI155: =IF(VLOOKUP(AD155,Group,5,FALSE)="YES",VLOOKUP(ROUND(ROUND(AH155,1)-AH155,2),Round,2,FALSE)+VLOOKUP(AD155,Group,6,FALSE),0) -> 0 | AJ155: =IF(VLOOKUP(AD155,Group,7,FALSE)="",0,ROUND(AH155-0.04999,1)-AH155+AK155) -> 0 | AK155: =IF(VLOOKUP(AD155,Group,7,FALSE)="","",VLOOKUP(AD155,Group,7,FALSE)) ->  | AM155: X
B156: Field Tile | E156: 2" x 10" | G156: Field - Picket | N156: 2.37 SF/CTN | O156: Stock | Q156: =IF(Suggested="Yes",Y156,AE156) -> 11.3 | R156: SF | S156: =+Instructions!$B$3 -> B | U156: =+Instructions!$C$22 -> 0 | V156: =ROUND($Y156*(1-U156)+0.004999,2) -> 11.3 | Y156: 11.3 | Z156: 0 | AA156: 11.3 | AB156: 0 | AD156: 1 | AE156: 11.3 | AH156: 11.3 | AI156: 0 | AJ156: 0 | AM156: X
AM157: X
B158: Decos | E158: 0.6" x 12" | G158: Pencil Bullnose (Edge Stick) | O158: Stock | Q158: =IF(Suggested="Yes",Y158,AE158) -> 9.25 | R158: EA | S158: =+Instructions!$B$3 -> B | U158: =+Instructions!$C$22 -> 0 | V158: =ROUND($Y158*(1-U158)+0.004999,2) -> 9.25 | Y158: 9.25 | Z158: =+U158 -> 0 | AA158: =+V158 -> 9.25 | AB158: =(AE158-AA158)/AE158 -> 0 | AD158: 3 | AE158: =SUM(AH158:AJ158)+AC158 -> 9.25 | AH158: =ROUND(AA158/(1-VLOOKUP(AD158,Group,2,FALSE)),2) -> 9.25 | AI158: =IF(VLOOKUP(AD158,Group,5,FALSE)="YES",VLOOKUP(ROUND(ROUND(AH158,1)-AH158,2),Round,2,FALSE)+VLOOKUP(AD158,Group,6,FALSE),0) -> 0 | AJ158: =IF(VLOOKUP(AD158,Group,7,FALSE)="",0,ROUND(AH158-0.04999,1)-AH158+AK158) -> 0 | AK158: =IF(VLOOKUP(AD158,Group,7,FALSE)="","",VLOOKUP(AD158,Group,7,FALSE)) ->  | AM158: X
D160: Note: | E160: a) Glazed Porcelain and may be used on floor applications.
C162: TOSCANA - Glazed Porcelain | P162: Item # Lookup: | Q162: APTO
AM163: X
D164: Colors: | E164: Ash Cotton Ghost Green Herb Lake Blue
AM165: X
B166: Field Tile | E166: 2.5" x 8" | G166: Field | N166: 3.77 SF/CTN | O166: Stock | Q166: =IF(Suggested="Yes",Y166,AE166) -> 10.95 | R166: SF | S166: =+Instructions!$B$3 -> B | U166: =+Instructions!$C$22 -> 0 | V166: =ROUND($Y166*(1-U166)+0.004999,2) -> 10.95 | Y166: 10.95 | Z166: =+U166 -> 0 | AA166: =+V166 -> 10.95 | AB166: =(AE166-AA166)/AE166 -> 0 | AD166: 1 | AE166: =SUM(AH166:AJ166)+AC166 -> 10.95 | AH166: =ROUND(AA166/(1-VLOOKUP(AD166,Group,2,FALSE)),2) -> 10.95 | AI166: =IF(VLOOKUP(AD166,Group,5,FALSE)="YES",VLOOKUP(ROUND(ROUND(AH166,1)-AH166,2),Round,2,FALSE)+VLOOKUP(AD166,Group,6,FALSE),0) -> 0 | AJ166: =IF(VLOOKUP(AD166,Group,7,FALSE)="",0,ROUND(AH166-0.04999,1)-AH166+AK166) -> 0 | AK166: =IF(VLOOKUP(AD166,Group,7,FALSE)="","",VLOOKUP(AD166,Group,7,FALSE)) ->  | AM166: X
B167: Field Tile | E167: 5" x 6" | G167: Field - Hex | N167: 3.34 SF/CTN | O167: Stock | Q167: =IF(Suggested="Yes",Y167,AE167) -> 12.5 | R167: SF | S167: =+Instructions!$B$3 -> B | U167: =+Instructions!$C$22 -> 0 | V167: 12.5 | Y167: 12.5 | Z167: 0 | AA167: 12.5 | AB167: 0 | AD167: 1 | AE167: 12.5 | AH167: 12.5 | AI167: 0 | AJ167: 0 | AM167: X
C169: VERONA - Glazed Porcelain | P169: Item # Lookup: | Q169: APVE
AM170: X
D171: Colors: | E171: Grey White
AM172: X
B173: Field Tile | E173: 3" x 12" | G173: Field | N173: 4.84 SF/CTN | O173: Stock | Q173: =IF(Suggested="Yes",Y173,AE173) -> 7.95 | R173: SF | S173: =+Instructions!$B$3 -> B | U173: =+Instructions!$C$22 -> 0 | V173: =ROUND($Y173*(1-U173)+0.004999,2) -> 7.95 | Y173: 7.95 | Z173: =+U173 -> 0 | AA173: =+V173 -> 7.95 | AB173: =(AE173-AA173)/AE173 -> 0 | AD173: 1 | AE173: =SUM(AH173:AJ173)+AC173 -> 7.95 | AH173: =ROUND(AA173/(1-VLOOKUP(AD173,Group,2,FALSE)),2) -> 7.95 | AI173: =IF(VLOOKUP(AD173,Group,5,FALSE)="YES",VLOOKUP(ROUND(ROUND(AH173,1)-AH173,2),Round,2,FALSE)+VLOOKUP(AD173,Group,6,FALSE),0) -> 0 | AJ173: =IF(VLOOKUP(AD173,Group,7,FALSE)="",0,ROUND(AH173-0.04999,1)-AH173+AK173) -> 0 | AK173: =IF(VLOOKUP(AD173,Group,7,FALSE)="","",VLOOKUP(AD173,Group,7,FALSE)) ->  | AM173: X
B174: Field Tile | E174: 5.5" x 6.3" | G174: Field - Hexagon | N174: 4.52 SF/CTN | O174: Stock | Q174: =IF(Suggested="Yes",Y174,AE174) -> 11.3 | R174: SF | S174: =+Instructions!$B$3 -> B | U174: =+Instructions!$C$22 -> 0 | V174: 11.3 | Y174: 11.3 | Z174: 0 | AA174: 11.3 | AB174: 0 | AD174: 1 | AE174: 11.3 | AH174: 11.3 | AI174: 0 | AJ174: 0 | AM174: X
B175: Field Tile | E175: 8" x 8" | G175: Field - Octagon | N175: 11.19 SF/CTN | O175: Stock | Q175: =IF(Suggested="Yes",Y175,AE175) -> 9.75 | R175: SF | S175: =+Instructions!$B$3 -> B | U175: =+Instructions!$C$22 -> 0 | V175: =ROUND($Y175*(1-U175)+0.004999,2) -> 9.75 | Y175: 9.75 | Z175: =+U175 -> 0 | AA175: =+V175 -> 9.75 | AB175: =(AE175-AA175)/AE175 -> 0 | AD175: 1 | AE175: =SUM(AH175:AJ175)+AC175 -> 9.75 | AH175: =ROUND(AA175/(1-VLOOKUP(AD175,Group,2,FALSE)),2) -> 9.75 | AI175: =IF(VLOOKUP(AD175,Group,5,FALSE)="YES",VLOOKUP(ROUND(ROUND(AH175,1)-AH175,2),Round,2,FALSE)+VLOOKUP(AD175,Group,6,FALSE),0) -> 0 | AJ175: =IF(VLOOKUP(AD175,Group,7,FALSE)="",0,ROUND(AH175-0.04999,1)-AH175+AK175) -> 0 | AK175: =IF(VLOOKUP(AD175,Group,7,FALSE)="","",VLOOKUP(AD175,Group,7,FALSE)) ->  | AM175: X
AM176: X
B177: Decos | E177: 0.6" x 12" | G177: Pencil Bullnose (Edge Stick) | O177: Stock | Q177: =IF(Suggested="Yes",Y177,AE177) -> 9.25 | R177: EA | S177: =+Instructions!$B$3 -> B | U177: =+Instructions!$C$22 -> 0 | V177: =ROUND($Y177*(1-U177)+0.004999,2) -> 9.25 | Y177: 9.25 | Z177: =+U177 -> 0 | AA177: =+V177 -> 9.25 | AB177: =(AE177-AA177)/AE177 -> 0 | AD177: 3 | AE177: =SUM(AH177:AJ177)+AC177 -> 9.25 | AH177: =ROUND(AA177/(1-VLOOKUP(AD177,Group,2,FALSE)),2) -> 9.25 | AI177: =IF(VLOOKUP(AD177,Group,5,FALSE)="YES",VLOOKUP(ROUND(ROUND(AH177,1)-AH177,2),Round,2,FALSE)+VLOOKUP(AD177,Group,6,FALSE),0) -> 0 | AJ177: =IF(VLOOKUP(AD177,Group,7,FALSE)="",0,ROUND(AH177-0.04999,1)-AH177+AK177) -> 0 | AK177: =IF(VLOOKUP(AD177,Group,7,FALSE)="","",VLOOKUP(AD177,Group,7,FALSE)) ->  | AM177: X
AM178: X
D179: Colors: | E179: Black
AM180: X
B181: Decos | E181: 1.5" x 1.5" | G181: Dot | H181: (to be used with 8" x 8" Octagon) | N181: 26 PCS/CTN | O181: Stock | P181: a | Q181: =IF(Suggested="Yes",Y181,AE181) -> 0.55 | R181: EA | S181: =+Instructions!$B$3 -> B | U181: =+Instructions!$C$22 -> 0 | V181: =ROUND($Y181*(1-U181)+0.004999,2) -> 0.55 | Y181: 0.55 | Z181: =+U181 -> 0 | AA181: =+V181 -> 0.55 | AB181: =(AE181-AA181)/AE181 -> 0 | AD181: 3 | AE181: =SUM(AH181:AJ181)+AC181 -> 0.55 | AH181: =ROUND(AA181/(1-VLOOKUP(AD181,Group,2,FALSE)),2) -> 0.55 | AI181: =IF(VLOOKUP(AD181,Group,5,FALSE)="YES",VLOOKUP(ROUND(ROUND(AH181,1)-AH181,2),Round,2,FALSE)+VLOOKUP(AD181,Group,6,FALSE),0) -> 0 | AJ181: =IF(VLOOKUP(AD181,Group,7,FALSE)="",0,ROUND(AH181-0.04999,1)-AH181+AK181) -> 0 | AK181: =IF(VLOOKUP(AD181,Group,7,FALSE)="","",VLOOKUP(AD181,Group,7,FALSE)) ->  | AM181: X
D183: Note: | E183: a) Need 2.25 dots per SF of 8" x 8" octagon field tile. 1 carton of dots to 1 carton of 8" octagon field tile.
C185: VINTAGE - Glazed Ceramic Wall | P185: Item # Lookup: | Q185: APVI
AM186: X
D187: Colors: | E187: Black Graphite Grey Ivory Lake Natural White
AM188: X
B189: Field Tile | E189: 3" x 6" | G189: Field | N189: 5.38 SF/CTN | O189: Stock | Q189: =IF(Suggested="Yes",Y189,AE189) -> 8.1 | R189: SF | S189: =+Instructions!$B$3 -> B | U189: =+Instructions!$C$22 -> 0 | V189: =ROUND($Y189*(1-U189)+0.004999,2) -> 8.1 | Y189: 8.1 | Z189: =+U189 -> 0 | AA189: =+V189 -> 8.1 | AB189: =(AE189-AA189)/AE189 -> 0 | AD189: 1 | AE189: =SUM(AH189:AJ189)+AC189 -> 8.1 | AH189: =ROUND(AA189/(1-VLOOKUP(AD189,Group,2,FALSE)),2) -> 8.1 | AI189: =IF(VLOOKUP(AD189,Group,5,FALSE)="YES",VLOOKUP(ROUND(ROUND(AH189,1)-AH189,2),Round,2,FALSE)+VLOOKUP(AD189,Group,6,FALSE),0) -> 0 | AJ189: =IF(VLOOKUP(AD189,Group,7,FALSE)="",0,ROUND(AH189-0.04999,1)-AH189+AK189) -> 0 | AK189: =IF(VLOOKUP(AD189,Group,7,FALSE)="","",VLOOKUP(AD189,Group,7,FALSE)) ->  | AM189: X
B190: Field Tile | E190: 4" x 8" | G190: Field - Elongated Hex (Hextra) | N190: 5.38 SF/CTN | O190: Stock | Q190: =IF(Suggested="Yes",Y190,AE190) -> 9.5 | R190: SF | S190: =+Instructions!$B$3 -> B | U190: =+Instructions!$C$22 -> 0 | V190: =ROUND($Y190*(1-U190)+0.004999,2) -> 9.5 | Y190: 9.5 | Z190: =+U190 -> 0 | AA190: =+V190 -> 9.5 | AB190: =(AE190-AA190)/AE190 -> 0 | AD190: 1 | AE190: =SUM(AH190:AJ190)+AC190 -> 9.5 | AH190: =ROUND(AA190/(1-VLOOKUP(AD190,Group,2,FALSE)),2) -> 9.5 | AI190: =IF(VLOOKUP(AD190,Group,5,FALSE)="YES",VLOOKUP(ROUND(ROUND(AH190,1)-AH190,2),Round,2,FALSE)+VLOOKUP(AD190,Group,6,FALSE),0) -> 0 | AJ190: =IF(VLOOKUP(AD190,Group,7,FALSE)="",0,ROUND(AH190-0.04999,1)-AH190+AK190) -> 0 | AK190: =IF(VLOOKUP(AD190,Group,7,FALSE)="","",VLOOKUP(AD190,Group,7,FALSE)) ->  | AM190: X
B191: Field Tile | E191: 3" x 12" | G191: Field | N191: 5.38 SF/CTN | O191: Stock | P191: a | Q191: =IF(Suggested="Yes",Y191,AE191) -> 7.75 | R191: SF | S191: =+Instructions!$B$3 -> B | U191: =+Instructions!$C$22 -> 0 | V191: =ROUND($Y191*(1-U191)+0.004999,2) -> 7.75 | Y191: 7.75 | Z191: =+U191 -> 0 | AA191: =+V191 -> 7.75 | AB191: =(AE191-AA191)/AE191 -> 0 | AD191: 1 | AE191: =SUM(AH191:AJ191)+AC191 -> 7.75 | AH191: =ROUND(AA191/(1-VLOOKUP(AD191,Group,2,FALSE)),2) -> 7.75 | AI191: =IF(VLOOKUP(AD191,Group,5,FALSE)="YES",VLOOKUP(ROUND(ROUND(AH191,1)-AH191,2),Round,2,FALSE)+VLOOKUP(AD191,Group,6,FALSE),0) -> 0 | AJ191: =IF(VLOOKUP(AD191,Group,7,FALSE)="",0,ROUND(AH191-0.04999,1)-AH191+AK191) -> 0 | AK191: =IF(VLOOKUP(AD191,Group,7,FALSE)="","",VLOOKUP(AD191,Group,7,FALSE)) ->  | AM191: X
AM192: X
B193: Trim | E193: 3" x 12" | G193: Bullnose | O193: Stock | Q193: =IF(Suggested="Yes",Y193,AE193) -> 8.7 | R193: EA | S193: =+Instructions!$B$3 -> B | U193: =+Instructions!$C$22 -> 0 | V193: =ROUND($Y193*(1-U193)+0.004999,2) -> 8.7 | Y193: 8.7 | Z193: =+U193 -> 0 | AA193: =+V193 -> 8.7 | AB193: =(AE193-AA193)/AE193 -> 0 | AD193: 2 | AE193: =SUM(AH193:AJ193)+AC193 -> 8.7 | AH193: =ROUND(AA193/(1-VLOOKUP(AD193,Group,2,FALSE)),2) -> 8.7 | AI193: =IF(VLOOKUP(AD193,Group,5,FALSE)="YES",VLOOKUP(ROUND(ROUND(AH193,1)-AH193,2),Round,2,FALSE)+VLOOKUP(AD193,Group,6,FALSE),0) -> 0 | AJ193: =IF(VLOOKUP(AD193,Group,7,FALSE)="",0,ROUND(AH193-0.04999,1)-AH193+AK193) -> 0 | AK193: =IF(VLOOKUP(AD193,Group,7,FALSE)="","",VLOOKUP(AD193,Group,7,FALSE)) ->  | AM193: X
D195: Note: | E195: a) Packaging is changing from 5.38 SF/CTN to 10.76 SF/CTN as inventory with old packaging is depleted.
C205: This price list is available electronically on an Excel spreadsheet at www.conestogatile.com/pricelists.
C207: The spreadsheet has many special features to assist you. Apply your discount to generate your net costs for your purchasing department. Apply your standard gross margin percentage or custom prices to generate your own custom price list for your showroom. Print out individual price list for each series that can be attached to the back of your sample boards for easy reference.
C208: The spreadsheet has many special features to assist you. Apply your discount to generate your net costs for your purchasing
C209: department. Apply your standard gross margin percentage or custom prices to generate your own custom price list for your showroom.
C210: Print out individual price list for each series that can be attached to the back of your sample boards for easy reference.
AM211: X
A212: X | B212: X | C212: X | D212: X | E212: X | F212: X | G212: X | H212: X | I212: X | J212: X | K212: X | L212: X | M212: X | N212: X | O212: X | P212: X | Q212: X | R212: X | S212: X | T212: X | U212: X | V212: X | W212: X | X212: X | Y212: X | Z212: X | AA212: X | AB212: X | AC212: X | AD212: X | AE212: X | AF212: X | AG212: X | AH212: X | AI212: X | AJ212: X | AK212: X | AL212: X | AM212: X
B214: Trim | G214: 2023 Tabletop Display | Q214: =IF(Suggested="Yes",Y214,AE214) -> 150 | R214: EA | S214: =+Instructions!$B$3 -> B | U214: =+Instructions!$C$22 -> 0 | V214: =ROUND($Y214*(1-U214)+0.004999,2) -> 150 | X214: new | Y214: 150 | Z214: =+U214 -> 0 | AA214: =+V214 -> 150 | AB214: =(AE214-AA214)/AE214 -> 0 | AD214: 2 | AE214: =SUM(AH214:AJ214)+AC214 -> 150 | AH214: =ROUND(AA214/(1-VLOOKUP(AD214,Group,2,FALSE)),2) -> 150 | AI214: =IF(VLOOKUP(AD214,Group,5,FALSE)="YES",VLOOKUP(ROUND(ROUND(AH214,1)-AH214,2),Round,2,FALSE)+VLOOKUP(AD214,Group,6,FALSE),0) -> 0 | AJ214: =IF(VLOOKUP(AD214,Group,7,FALSE)="",0,ROUND(AH214-0.04999,1)-AH214+AK214) -> 0 | AK214: =IF(VLOOKUP(AD214,Group,7,FALSE)="","",VLOOKUP(AD214,Group,7,FALSE)) ->  | AM214: X
D216: -0.04 | E216: 0.01
D217: -0.03 | E217: 0.02
D218: -0.02 | E218: 0.03
D219: -0.01 | E219: -0.01
D220: 0 | E220: 0
D221: 0.01 | E221: 0.01
D222: 0.02 | E222: 0.02
D223: 0.03 | E223: 0.03
D224: 0.04 | E224: -0.01
D225: 0.05 | E225: 0

Sheet Websites
A1: Easy Access Website links
A3: ConestogaTile's Website | B3: https://www.conestogatile.com/
A5: Manufacturer's Home Page | B5: https://www.apegrupo.com/en/products/
A8: Product | B8: Direct Website Link
A9: Altea | B9: https://www.apegrupo.com/en/products/altea/
A10: Calpe | B10: https://www.apegrupo.com/en/products/calpe/
A11: Calacatta Slow | B11: https://www.apegrupo.com/en/products/calacatta-slow/
A12: Dynamic | B12: https://www.apegrupo.com/en/products/dynamic/
A13: Fado | B13: https://www.apegrupo.com/en/products/fado/
A14: Grunge | B14: https://www.apegrupo.com/en/products/grunge/
A15: Hamptons | B15: https://www.apegrupo.com/en/products/hamptons/
A16: Memories | B16: https://www.apegrupo.com/en/products/memories/
A17: Murus | B17: https://www.apegrupo.com/en/products/murus/
A18: Onyx Slow | B18: https://www.apegrupo.com/en/products/onyx-slow/
A19: Savannah | B19: https://www.apegrupo.com/en/products/savannah/
A20: Seville | B20: https://www.apegrupo.com/en/products/seville/
A21: Switch | B21: https://www.apegrupo.com/en/products/switch/
A22: Toscana | B22: https://www.apegrupo.com/en/products/toscana/
A23: Verona | B23: https://www.apegrupo.com/en/products/verona/
A24: Vintage | B24: https://www.apegrupo.com/en/products/vintage/

Sheet Changes
A1: Date | C1: Description
A2: Announced | B2: Series
A4: New Products
A5: 2020-07-01 | B5: Altea | C5: Glazed Ceramic Wall
A6: 2020-07-01 | B6: Calpe | C6: Glazed Ceramic Wall
A7: 2020-07-01 | B7: Dynamic | C7: Glazed Ceramic Wall
A8: 2020-07-01 | B8: Grunge | C8: Glazed Ceramic Wall
A9: 2020-07-01 | B9: Switch | C9: Glazed Ceramic Wall
A10: 2020-07-01 | B10: Vintage | C10: Glazed Ceramic Wall
A11: 2021-08-30 | B11: Fado | C11: Glazed Ceramic Wall
A12: 2021-08-30 | B12: Hamptons | C12: Glazed Ceramic Wall
A13: 2021-08-30 | B13: Memories | C13: Glazed Ceramic Wall
A14: 2021-08-30 | B14: Murus | C14: Glazed Ceramic Wall
A15: 2023-01-01 | B15: Calacatta Slow | C15: Glazed Ceramic Wall & Glazed Porcelain Floor
A16: 2023-01-01 | B16: Onyx Slow | C16: Glazed Ceramic Wall & Glazed Porcelain Floor
A17: 2023-01-01 | B17: Savannah | C17: Glazed Ceramic Wall
A18: 2023-01-01 | B18: Seville | C18: Glazed Ceramic Wall
A19: 2023-01-01 | B19: Toscana | C19: Glazed Ceramic Wall
A20: 2023-01-01 | B20: Verona | C20: Glazed Ceramic Wall & Glazed Porcelain Floor
A25: Discontinued Products
A26: 2023-04-06 | B26: Vintage | C26: 6" x 6" Field Tile format only in all colors.
A39: Changes
A40: 2023-03-28 | B40: Toscana | C40: It has been learned that the tile in this series is a Glazed Porcelain. The only place Ape does not recommend its installation is in very high traffic areas like malls etc..
A41: 2023-05-19 | B41: Altea | C41: The 3" x 12" Field Tile packaging is changing from 5.38 SF/CTN to 10.76 SF/CTN as inventory with old packaging is depleted.
A42: 2023-05-19 | B42: Murus | C42: The 3" x 11" Field Tile packaging is changing from 10.55 SF/CTN to 6.35 SF/CTN as inventory with old packaging is depleted.
